bitfinex-derivatives/quotes_ETHF0:USTF0_20251003
["timestamp","ask_amount","ask_price","bid_price","bid_amount"]
[1759514148532,0.00166658,4474.0,4473.8,0.239]
[1759514148936,0.00166658,4474.0,4473.9,1.0868]
[1759514149330,0.00166658,4474.0,4473.9,36.2308]
[1759514149531,0.00166658,4474.0,4473.7,0.00190713]
[1759514149731,0.00166658,4474.0,4473.8,0.238]
[1759514149930,0.00166658,4474.0,4473.9,0.30352688]
[1759514150132,0.00166658,4474.0,4473.9,1.39032688]
[1759514150333,0.00166658,4474.0,4473.9,36.53032688]
[1759514150926,0.00166658,4474.0,4473.9,6.39032688]
[1759514151334,0.00166658,4474.0,4473.9,1.39032688]
[1759514151529,1.00445,4477.0,4474.5,1.0868]
[1759514151732,0.40187,4476.0,4475.9,3.2078]
[1759514152037,0.40191,4475.5,4475.4,3.2078]
[1759514152238,0.40191,4475.5,4475.4,3.4458]
[1759514152429,8.35984967,4475.5,4475.4,3.4458]
[1759514152629,0.001593,4475.5,4475.4,3.74932688]
[1759514152837,5.403503,4475.5,4475.4,3.74932688]
[1759514153030,8.32956873,4475.5,4475.4,3.51132688]
[1759514153230,3.32956873,4475.5,4475.4,3.74932688]
[1759514153429,3.32956873,4475.5,4475.4,4.83612688]
[1759514153430,0.001593,4475.5,4475.4,4.83612688]
[1759514153629,8.49125873,4475.5,4475.4,3.74932688]
[1759514153839,2.92765873,4475.5,4475.4,3.74932688]
[1759514154342,0.40199,4474.5,4474.3,3.2078]
[1759514154637,0.40199,4474.5,4474.4,1.0868]
[1759514154832,0.40199,4474.5,4474.4,0.238]
[1759514155032,0.40199,4474.5,4474.4,1.3248]
[1759514155237,0.40197,4474.8,4474.4,0.238]
[1759514155433,0.001593,4475.5,4474.5,1.0868]
[1759514155631,2.89159563,4475.4,4475.3,1.0868]
[1759514155936,0.40192,4475.3,4475.2,3.2078]
[1759514156135,0.40192,4475.4,4475.3,1.3248]
[1759514156435,0.403503,4475.5,4475.4,1.0868]
[1759514156636,0.001593,4475.5,4475.4,1.0868]
[1759514156827,0.40191,4475.4,4475.2,3.2078]
[1759514157032,0.40197,4474.8,4474.7,4.2946]
[1759514157233,0.40197,4474.8,4474.7,4.5326]
[1759514157640,0.40197,4474.8,4473.1,0.17542615]
[1759514157641,0.40201,4474.4,4474.3,1.0868]
[1759514157938,0.40201,4474.4,4474.3,1.3248]
[1759514158332,0.40201,4474.4,4474.2,3.2078]
[1759514158530,0.40206,4473.8,4473.7,3.20970713]
[1759514158735,0.40206,4473.8,4473.7,3.44770713]
[1759514159239,0.40206,4473.8,4473.7,0.23990713]
[1759514159634,8.91847947,4473.8,4473.7,0.00190713]
[1759514159837,8.51641947,4473.8,4472.7,1.0868]
[1759514160037,0.40214,4472.9,4472.8,0.237]
[1759514160243,3.2078,4473.4,4472.1,3.2078]
[1759514160443,0.40225,4471.7,4471.6,3.2078]
[1759514160630,0.40221,4472.1,4471.6,3.4448]
[1759514160832,0.00170967,4472.1,4471.6,3.90174767]
[1759514161140,3.97188383,4473.9,4471.6,3.90174767]
[1759514161141,1.00514,4473.9,4473.0,0.4542]
[1759514161440,0.40206,4473.8,4473.7,0.4542]
[1759514161635,0.40206,4473.8,4473.7,0.237]
[1759514161840,0.40205,4473.9,4473.7,0.237]
[1759514162134,0.40403744,4473.9,4473.7,0.237]
[1759514162333,0.40403744,4473.9,4473.8,1.1754]
[1759514162334,0.00198744,4473.9,4473.8,1.1754]
[1759514163142,0.00198744,4473.9,4473.8,1.4124]
[1759514163342,0.00198744,4473.9,4473.8,6.4124]
[1759514164438,1.0955,4475.5,4473.9,0.40204]
[1759514164640,1.0955,4476.2,4475.1,1.1754]
[1759514164839,3.2078,4476.8,4475.9,3.2078]
[1759514165138,0.40186,4476.1,4476.0,1.4124]
[1759514165344,2.86241526,4476.4,4476.3,1.1754]
[1759514165545,0.40181,4476.6,4476.4,1.1754]
[1759514165745,0.40463639,4476.6,4476.5,3.4448]
[1759514165948,0.00282639,4476.6,4476.5,3.2078]
[1759514166242,0.00282639,4476.6,4476.5,4.6202]
[1759514166444,0.00282639,4476.6,4476.5,3.2078]
[1759514166741,0.00282639,4476.6,4476.5,3.4448]
[1759514167137,0.00282639,4476.6,4476.5,4.6202]
[1759514167338,0.00282639,4476.6,4476.5,5.0603]
[1759514167541,0.40463639,4476.6,4476.5,3.2078]
[1759514167837,0.40463639,4476.6,4476.5,3.4448]
[1759514168242,3.34134092,4476.6,4476.5,3.4448]
[1759514168442,0.00282639,4476.6,4476.5,4.6202]
[1759514169245,0.40177,4477.1,4476.5,10.0603]
[1759514169545,0.022,4477.9,4476.5,10.0603]
[1759514169546,2.84905514,4477.7,4477.1,1.57715]
[1759514169845,0.40172,4477.6,4477.5,3.2078]
[1759514170048,0.40172,4477.6,4477.5,2.74761]
[1759514170242,0.40179,4476.8,4476.7,3.2078]
[1759514170443,0.40179,4476.8,4476.7,4.6202]
[1759514170643,5.07121756,4477.6,4476.7,3.4448]
[1759514170644,1.09752848,4477.6,4476.7,3.4448]
[1759514170849,0.40177,4477.1,4476.7,3.4448]
[1759514171045,2.91370717,4477.2,4476.7,3.84659]
[1759514171246,1.09752848,4477.6,4476.8,1.1754]
[1759514171247,0.00202848,4477.6,4476.8,1.1754]
[1759514171550,0.40173,4477.5,4477.3,1.1754]
[1759514171749,0.00202848,4477.6,4477.5,1.57713]
[1759514172161,0.00202848,4477.6,4477.5,1.1754]
[1759514173142,0.40374848,4477.6,4477.5,1.1754]
[1759514173349,0.40374848,4477.6,4477.5,1.4124]
[1759514173546,0.00202848,4477.6,4477.5,1.4124]
[1759514174350,0.022,4477.9,4477.8,2.0172]
[1759514174551,0.40162,4478.8,4478.4,1.6155]
[1759514174747,0.40168,4478.0,4477.9,3.2078]
[1759514174946,1.00424,4477.9,4477.1,3.2078]
[1759514175148,0.4018,4476.7,4476.6,1.1754]
[1759514175350,0.4018,4476.7,4476.6,1.4124]
[1759514175351,0.40455904,4476.7,4476.6,1.4124]
[1759514175557,0.00275904,4476.7,4476.6,5.0603]
[1759514175745,0.40173,4477.5,4476.8,1.1754]
[1759514176056,0.40176,4477.1,4477.0,1.1754]
[1759514176553,0.40175,4477.3,4476.9,0.237]
[1759514176754,0.00266713,4477.1,4477.0,1.1754]
[1759514177147,3.2078,4478.3,4477.9,1.1754]
[1759514177148,0.40166,4478.3,4477.9,1.1754]
[1759514177450,0.40166,4478.3,4477.8,0.84179]
[1759514177451,0.40162,4478.7,4478.5,1.1754]
[1759514177646,4.3033,4479.3,4478.6,0.237]
[1759514177954,4.34074101,4478.7,4478.6,0.237]
[1759514178153,1.49712,4478.7,4478.6,0.237]
[1759514178357,3.27682858,4478.7,4478.6,0.237]
[1759514178958,0.40174,4477.3,4477.2,1.6155]
[1759514179150,0.40174,4477.3,4477.2,1.1754]
[1759514179354,0.40182,4476.4,4476.3,1.1779223]
[1759514179668,0.40181,4476.6,4476.4,1.1754]
[1759514179853,1.00441,4477.2,4476.4,1.1754]
[1759514180053,1.00441,4477.2,4476.6,3.2078]
[1759514180054,2.91055259,4477.2,4476.6,3.2078]
[1759514180254,0.40175,4477.3,4477.1,3.2078]
[1759514180459,0.40175,4477.3,4477.2,1.8525]
[1759514180657,3.2078,4478.4,4477.2,2.25425]
[1759514180960,0.40171,4477.7,4477.6,4.3832]
[1759514181146,0.40171,4477.7,4477.6,4.6192]
[1759514181651,0.40179,4476.8,4476.7,1.1754]
[1759514182153,4.41924098,4476.8,4476.7,0.236]
[1759514182753,3.2078,4477.2,4476.7,0.236]
[1759514182954,0.40179,4476.8,4476.7,0.236]
[1759514183352,1.00437,4477.3,4476.7,5.236]
[1759514183353,2.92850883,4477.3,4476.7,5.236]
[1759514183557,1.0955,4478.4,4477.2,0.4401]
[1759514183756,0.40173,4477.5,4477.3,0.237]
[1759514183962,1.0955,4477.7,4476.6,3.2078]
[1759514184258,0.4018,4476.7,4476.6,3.2078]
[1759514184450,0.4018,4476.7,4476.6,4.6192]
[1759514184654,0.4018,4476.7,4476.6,1.4114]
[1759514184860,0.40179,4476.8,4476.7,1.1754]
[1759514185158,2.94369863,4477.5,4476.6,5.0593]
[1759514185363,0.40179,4476.8,4476.7,1.1754]
[1759514185569,2.94369863,4477.5,4476.9,0.40178]
[1759514185763,4.212,4478.1,4477.2,1.1754]
[1759514185764,0.40175,4477.3,4477.2,1.1754]
[1759514186060,0.40174,4477.4,4476.6,3.6479]
[1759514186254,3.2078,4477.1,4476.3,1.1779223]
[1759514186454,1.0955,4476.5,4474.8,3.2078]
[1759514186654,1.0955,4475.8,4474.8,3.4438]
[1759514186856,3.2078,4475.9,4474.9,1.1754]
[1759514187057,0.40195,4475.1,4474.8,3.9101]
[1759514187252,1.59985,4475.0,4474.8,3.4438]
[1759514187458,0.00226192,4475.0,4474.9,1.1848]
[1759514189157,0.40421192,4475.0,4474.8,3.2096702]
[1759514189358,0.40421192,4475.0,4474.9,1.4208]
[1759514189659,0.40421192,4475.0,4474.9,0.236]
[1759514189964,0.40421192,4475.0,4474.9,1.4208]
[1759514190156,0.00226192,4475.0,4474.9,1.4208]
[1759514190361,0.00226192,4475.0,4474.9,4.6286]
[1759514190763,4.4057,4476.7,4475.6,1.1848]
[1759514190960,1.1979,4475.8,4475.7,0.236]
[1759514191465,0.40187,4475.9,4475.7,0.236]
[1759514191864,4.16609512,4475.8,4475.7,0.236]
[1759514192068,2.96819512,4475.8,4475.7,0.236]
[1759514192463,5.11891512,4475.8,4475.0,3.2078]
[1759514192763,0.40193,4475.2,4475.1,1.3788]
[1759514192964,0.40193,4475.2,4475.1,0.236]
[1759514193763,0.40193,4475.3,4475.2,1.1428]
[1759514193964,0.40192,4475.4,4475.3,0.40192]
[1759514194166,0.40192,4475.4,4475.3,1.78072]
[1759514194362,0.00156527,4475.9,4475.3,1.3788]
[1759514194563,0.00156527,4475.9,4475.8,4.3506]
[1759514194766,1.00424,4477.9,4476.2,1.00461]
[1759514195069,2.8726694,4477.7,4477.1,4.3506]
[1759514195262,2.8726694,4477.7,4477.3,1.1428]
[1759514195462,3.8768794,4478.0,4477.3,1.1428]
[1759514195662,0.00205936,4478.0,4477.2,0.63775]
[1759514195965,1.00627936,4478.0,4477.3,1.1428]
[1759514196168,0.40174,4477.4,4477.2,0.236]
[1759514196662,0.40172,4477.6,4477.3,1.1428]
[1759514196868,0.40173,4477.5,4477.3,1.1428]
[1759514197171,0.40174,4477.4,4477.2,0.236]
[1759514197472,0.40173,4477.5,4477.3,1.1428]
[1759514197666,1.00439,4477.2,4476.7,1.1428]
[1759514197971,3.2078,4477.7,4476.9,1.1428]
[1759514197972,0.40178,4477.0,4476.9,1.1428]
[1759514198468,3.2078,4477.7,4476.8,1.3788]
[1759514198669,3.2078,4477.7,4477.0,0.40177]
[1759514198970,0.40173,4477.5,4477.4,3.2078]
[1759514199172,0.40171,4477.8,4477.7,0.40171]
[1759514199366,0.00205936,4478.0,4477.9,1.54449]
[1759514199567,0.00205936,4478.0,4477.9,4.75229]
[1759514199872,0.00205936,4478.0,4477.9,1.1428]
[1759514200068,0.00205936,4478.0,4477.9,4.3506]
[1759514201062,0.00205936,4478.0,4477.9,3.2078]
[1759514201267,0.40174,4477.4,4477.2,1.1428]
[1759514201473,0.40174,4477.4,4477.3,1.3778]
[1759514202170,0.40174,4477.4,4477.3,4.5856]
[1759514203174,0.00205936,4478.0,4477.3,3.4428]
[1759514203469,0.40173,4477.5,4477.4,1.1428]
[1759514204172,0.40178,4476.9,4476.8,3.2078]
[1759514204474,0.40178,4476.9,4476.8,4.3506]
[1759514204675,0.40178,4476.9,4476.8,4.5856]
[1759514204875,0.40177,4477.0,4476.9,1.54458]
[1759514205174,0.40177,4477.0,4476.9,1.1428]
[1759514205370,2.86221417,4477.7,4477.0,0.4784]
[1759514205583,2.86221417,4477.7,4477.1,1.3778]
[1759514205871,0.40174,4477.3,4477.2,1.1428]
[1759514206069,0.40172,4477.7,4477.6,1.1428]
[1759514206265,0.00205936,4478.0,4477.7,1.1428]
[1759514206472,0.00205936,4478.0,4477.9,1.1428]
[1759514206775,0.00205936,4478.0,4477.9,1.3778]
[1759514207174,0.00205936,4478.0,4477.9,0.235]
[1759514207373,0.00205936,4478.0,4477.9,1.3778]
[1759514207968,1.00424,4477.9,4477.4,2.33104182]
[1759514208178,0.40171,4477.7,4477.5,0.235]
[1759514208371,0.40173,4477.5,4477.4,1.1428]
[1759514208571,1.00424,4477.9,4477.1,1.18824182]
[1759514208572,0.40175,4477.3,4477.1,1.18824182]
[1759514208773,0.40183,4476.3,4476.2,1.18824182]
[1759514208968,1.146,4477.0,4476.2,0.235]
[1759514209172,0.40183,4476.3,4476.2,1.42324182]
[1759514209375,1.00446,4476.9,4476.2,1.42324182]
[1759514209376,2.90191954,4476.9,4476.3,0.40183]
[1759514209569,0.40183,4476.3,4476.2,1.42324182]
[1759514209776,0.40181,4476.6,4476.4,0.40182]
[1759514209968,2.90191954,4477.3,4476.5,3.9212]
[1759514210167,0.40173,4477.6,4477.1,0.40176]
[1759514210369,0.40174,4477.4,4477.2,0.235]
[1759514210576,0.40174,4477.4,4477.3,1.1428]
[1759514210970,0.00205936,4478.0,4477.3,1.1428]
[1759514211171,0.40174,4477.5,4477.4,1.1428]
[1759514211370,0.00205936,4478.0,4477.4,3.60953]
[1759514211572,0.40171,4477.7,4477.6,1.1428]
[1759514212771,0.40169,4477.9,4477.8,0.40169]
[1759514212971,0.00205936,4478.0,4477.9,1.1428]
[1759514212972,0.40374936,4478.0,4477.9,1.1428]
[1759514213369,0.00205936,4478.0,4477.9,4.3506]
[1759514213573,0.00205936,4478.0,4477.9,9.3506]
[1759514214078,3.2078,4479.4,4478.6,0.40162]
[1759514214277,3.2078,4479.4,4478.8,3.2078]
[1759514214482,0.4016,4479.0,4478.8,3.2078]
[1759514214784,1.00403,4478.8,4478.2,1.19713129]
[1759514214973,0.40166,4478.2,4478.1,1.1428]
[1759514215173,0.40446723,4478.2,4478.1,0.23679733]
[1759514215574,0.40446723,4478.2,4477.3,1.19713129]
[1759514215575,0.4798,4478.0,4477.3,1.19713129]
[1759514215773,0.40173,4477.4,4477.2,0.235]
[1759514215970,0.40173,4477.4,4476.5,1.1428]
[1759514215971,0.40173,4477.4,4477.3,0.235]
[1759514216177,1.146,4477.4,4477.3,0.235]
[1759514216579,0.40173,4477.5,4477.3,0.23740122]
[1759514216776,1.146,4477.4,4477.3,0.23740122]
[1759514217583,0.40173,4477.5,4477.3,0.23740122]
[1759514218180,0.40173,4477.5,4477.4,1.1428]
[1759514218772,0.40173,4477.5,4477.4,4.3506]
[1759514218977,3.6876,4478.5,4477.4,3.2078]
[1759514219283,1.00414,4478.3,4477.5,1.1428]
[1759514219478,3.2078,4478.5,4477.8,0.4017]
[1759514219479,0.40169,4477.9,4477.8,0.4017]
[1759514219775,0.40169,4477.9,4477.8,1.1428]
[1759514220178,3.6876,4479.0,4477.6,1.43113129]
[1759514220379,0.40166,4478.3,4478.1,5.54773129]
[1759514220584,0.4017,4477.8,4477.7,1.5906721]
[1759514220776,1.5477,4477.8,4477.7,0.234]
[1759514220977,4.42930498,4477.8,4477.7,0.234]
[1759514221673,0.40172,4477.5,4477.3,0.00240122]
[1759514221878,1.146,4477.4,4477.3,0.23640122]
[1759514222179,0.40172,4477.5,4477.3,1.42170122]
[1759514222482,0.4017,4477.8,4477.6,0.40171]
[1759514222684,0.00280723,4478.2,4477.7,4.64062437]
[1759514222981,0.00280723,4478.2,4478.1,1.1853]
[1759514223176,0.00280723,4478.2,4478.1,1.4193]
[1759514223384,0.00280723,4478.2,4478.1,6.4193]
[1759514223578,0.00280723,4478.2,4478.1,1.1853]
[1759514223884,0.00280723,4478.2,4478.1,1.4193]
[1759514224179,0.40167,4478.1,4478.0,0.234]
[1759514224482,0.40167,4478.1,4477.9,0.234]
[1759514224679,0.40167,4478.1,4478.0,1.1853]
[1759514224879,0.40167,4478.1,4477.9,0.234]
[1759514224880,0.40447723,4478.2,4478.1,1.1853]
[1759514225376,1.0911,4478.0,4477.7,1.60077606]
[1759514225681,1.49282,4477.5,4477.4,0.234]
[1759514225978,1.0911,4477.4,4477.3,0.00240122]
[1759514226180,1.0911,4477.4,4476.6,34.839]
[1759514226181,0.40179,4476.8,4476.6,1.60077606]
[1759514226383,0.40181,4476.5,4476.3,1.60077606]
[1759514226581,0.40181,4476.5,4476.4,0.234]
[1759514226886,0.40185,4476.1,4475.9,1.60077606]
[1759514227181,1.49297,4475.9,4475.8,0.234]
[1759514227482,1.49297,4475.9,4475.8,0.23689573]
[1759514227780,0.40187,4476.0,4475.9,1.1853]
[1759514228090,0.40184,4476.3,4476.0,0.4374]
[1759514228283,0.40184,4476.3,4476.2,3.2078]
[1759514228576,0.40184,4476.3,4476.1,0.234]
[1759514228577,1.49294,4476.3,4476.1,0.234]
[1759514228779,1.0911,4476.2,4476.1,0.234]
[1759514229178,1.0911,4476.2,4475.8,0.00289573]
[1759514229374,1.49297,4475.9,4475.8,0.00289573]
[1759514230183,3.6611,4476.0,4475.8,1.42219573]
[1759514230184,0.40186,4476.0,4475.8,1.42219573]
[1759514230483,2.84934421,4475.9,4475.8,1.42219573]
[1759514230982,2.84934421,4475.9,4475.8,0.23689573]
[1759514231179,6.0911,4475.9,4475.8,0.00289573]
[1759514231381,1.49303,4475.2,4475.1,3.2078]
[1759514231786,0.40193,4475.2,4475.1,4.3931]
[1759514232286,0.40193,4475.2,4475.1,4.39510081]
[1759514232887,1.00458,4476.4,4475.1,3.20980081]
[1759514233083,3.2078,4476.6,4475.8,3.2078]
[1759514233288,0.40186,4476.1,4475.9,0.234]
[1759514233489,0.40186,4476.1,4476.0,1.1853]
[1759514233686,0.40186,4476.1,4475.9,0.234]
[1759514233687,1.0911,4476.0,4475.9,0.234]
[1759514233983,0.40191,4475.4,4475.3,4.3931]
[1759514234184,0.40191,4475.4,4475.3,4.6271]
[1759514234384,0.40191,4475.4,4475.3,3.4418]
[1759514234683,0.40191,4475.4,4475.3,0.234]
[1759514234684,1.0911,4475.4,4475.3,0.234]
[1759514234990,0.4019,4475.6,4475.4,0.40191]
[1759514235188,1.0911,4475.9,4475.3,0.234]
[1759514235486,1.0911,4475.7,4475.3,0.234]
[1759514235686,2.87269275,4475.8,4475.4,1.1853]
[1759514235987,2.87269275,4475.8,4475.3,0.234]
[1759514235988,0.40186,4476.1,4476.0,1.1853]
[1759514236190,1.0911,4476.9,4476.0,0.6714]
[1759514236484,3.60955,4477.3,4476.7,0.40179]
[1759514236676,1.0911,4477.7,4476.8,0.234]
[1759514236881,3.2078,4477.9,4477.0,3.2078]
[1759514237086,0.40174,4477.3,4477.2,1.1853]
[1759514237376,0.40174,4477.3,4477.1,0.235]
[1759514237582,0.40172,4477.6,4477.3,0.40174]
[1759514237776,3.2078,4478.5,4477.5,4.3931]
[1759514237978,4.21192,4478.5,4477.6,1.1853]
[1759514238177,0.4017,4477.9,4477.8,1.1853]
[1759514239377,0.4533,4479.0,4478.1,1.1853]
[1759514239378,0.40159,4479.0,4478.1,1.1853]
[1759514239586,3.2078,4479.7,4478.5,0.4374]
[1759514239785,0.40157,4479.2,4479.1,1.1853]
[1759514239985,2.8504429,4479.6,4479.1,0.234]
[1759514240287,3.2078,4479.7,4479.1,0.234]
[1759514240487,0.40157,4479.3,4479.1,0.23573048]
[1759514240684,0.40154,4479.6,4479.1,0.23573048]
[1759514240889,0.40157,4479.3,4479.1,0.23573048]
[1759514241089,0.40157,4479.3,4479.2,1.1853]
[1759514241489,1.09395833,4479.7,4479.1,1.42103048]
[1759514241693,1.09395833,4479.7,4479.6,1.1853]
[1759514241694,0.00285833,4479.7,4479.6,1.1853]
[1759514241885,0.00285833,4479.7,4479.1,0.23573048]
[1759514241886,1.0911,4479.5,4479.1,0.00173048]
[1759514242094,1.49267,4479.2,4479.1,0.00173048]
[1759514242288,1.49267,4479.2,4479.1,0.23573048]
[1759514242485,0.40166,4478.2,4478.1,36.0313]
[1759514242686,1.0911,4478.8,4478.2,1.1853]
[1759514242687,0.40166,4478.3,4478.2,1.1853]
[1759514242990,0.40166,4478.2,4478.1,1.1853]
[1759514243185,0.40166,4478.2,4478.0,0.234]
[1759514243186,0.40167,4478.2,4478.0,0.234]
[1759514243391,0.40167,4478.2,4478.1,1.1853]
[1759514243587,3.2078,4480.0,4478.6,1.1853]
[1759514243792,0.4016,4478.9,4478.8,1.1853]
[1759514243988,2.95265608,4479.6,4478.8,1.1853]
[1759514244691,0.4016,4478.9,4478.7,1.4193]
[1759514244892,1.0911,4479.6,4478.8,1.1853]
[1759514245295,0.40159,4479.1,4478.8,1.1853]
[1759514245496,0.40159,4479.0,4478.9,0.234]
[1759514245694,1.49269,4479.0,4478.9,0.234]
[1759514245895,6.14979154,4479.5,4478.9,0.234]
[1759514245896,2.94199154,4479.5,4478.9,1.4193]
[1759514246096,3.2078,4480.0,4479.1,1.1853]
[1759514246303,1.4927,4478.9,4478.7,0.234]
[1759514246902,3.97180472,4478.8,4478.7,0.234]
[1759514247105,1.1467,4478.5,4478.2,0.234]
[1759514247306,1.1467,4479.2,4478.4,0.40164]
[1759514247493,3.2078,4479.3,4478.4,0.4343]
[1759514247698,3.2078,4479.3,4478.7,1.0715]
[1759514247894,3.2078,4479.3,4478.4,0.83594]
[1759514247895,4.3545,4479.3,4478.8,0.234]
[1759514248098,1.1467,4478.9,4478.8,0.234]
[1759514249194,3.2078,4479.3,4478.8,0.234]
[1759514249494,3.60936,4479.3,4478.8,0.234]
[1759514249695,3.2078,4479.3,4478.9,1.47309]
[1759514249899,3.2078,4479.3,4479.1,0.40158]
[1759514250097,3.2078,4479.3,4479.2,0.234]
[1759514250402,4.3545,4479.3,4479.2,0.234]
[1759514250604,1.1467,4478.9,4478.2,3.2078]
[1759514250802,1.5483,4478.9,4478.3,0.234]
[1759514251002,1.54831,4478.9,4478.3,0.234]
[1759514251303,3.2078,4479.3,4478.7,0.40161]
[1759514251500,3.2078,4479.3,4478.8,0.234]
[1759514251804,0.00285833,4479.7,4479.1,1.0715]
[1759514252001,0.00285833,4479.7,4479.2,0.63557]
[1759514252002,1.14955833,4479.7,4479.2,0.63557]
[1759514252305,1.14955833,4479.7,4478.7,3.2078]
[1759514252306,0.00285833,4479.7,4478.7,4.21185]
[1759514252604,2.83864641,4479.6,4478.9,1.154]
[1759514252805,0.40157,4479.3,4478.8,0.234]
[1759514253003,2.83864641,4479.6,4479.5,0.4414]
[1759514253202,2.83864641,4479.6,4479.5,1.8294]
[1759514253508,0.00285833,4479.7,4479.6,1.55554]
[1759514253801,0.00285833,4479.7,4479.6,0.234]
[1759514254200,2.90867941,4479.7,4479.5,0.40154]
[1759514254397,2.90867941,4479.7,4479.6,1.388]
[1759514254605,2.90867941,4479.7,4479.6,0.234]
[1759514254606,1.12425833,4479.7,4479.6,0.234]
[1759514254998,0.00285833,4479.7,4479.6,1.388]
[1759514255310,0.00285833,4479.7,4479.6,0.234]
[1759514255701,0.00285833,4479.7,4479.6,1.388]
[1759514256398,1.52578833,4479.7,4479.6,0.234]
[1759514257808,0.00285833,4479.7,4479.6,1.388]
[1759514258802,1.12425833,4479.7,4479.6,0.234]
[1759514259309,0.00285833,4479.7,4479.6,1.388]
[1759514259702,1.12425833,4479.7,4479.6,0.234]
[1759514260410,0.00285833,4479.7,4479.6,1.78954]
[1759514260903,1.57277134,4479.7,4479.6,0.234]
[1759514261704,1.57277134,4479.7,4479.6,1.388]
[1759514261705,0.45137134,4479.7,4479.6,1.388]
[1759514261907,1.57277134,4479.7,4479.6,0.234]
[1759514262205,0.45137134,4479.7,4479.6,0.234]
[1759514262409,0.45137134,4479.7,4479.6,1.388]
[1759514263205,0.4459374,4479.7,4479.6,6.388]
[1759514263706,0.4459374,4479.7,4479.6,1.388]
[1759514264101,0.4459374,4479.7,4479.6,2.58335755]
[1759514264300,0.44844249,4479.7,4479.6,1.388]
[1759514264503,1.56984249,4479.7,4479.6,0.234]
[1759514267110,0.40156,4479.3,4479.2,1.19535755]
[1759514267314,1.00402,4478.9,4478.4,1.20077928]
[1759514267510,1.1214,4478.4,4478.3,0.233]
[1759514267706,0.40167,4478.1,4478.0,0.00271391]
[1759514267909,1.52307,4478.1,4478.0,0.00271391]
[1759514268309,1.5673374,4478.1,4478.0,0.00271391]
[1759514268712,0.4459374,4478.1,4478.0,1.15671391]
[1759514268912,1.5673374,4478.1,4478.0,0.00271391]
[1759514269410,4.48828143,4478.1,4478.0,0.00271391]
[1759514269608,12.69608143,4478.1,4478.0,3.91e-06]
[1759514269808,7.69608143,4478.1,4478.0,3.91e-06]
[1759514270404,0.4266,4478.0,4477.4,0.233]
[1759514270609,0.40173,4477.5,4477.4,0.233]
[1759514270811,1.52313,4477.5,4477.4,0.233]
[1759514271311,1.9690674,4477.5,4477.4,0.233]
[1759514271615,1.9690674,4477.5,4477.4,0.23559818]
[1759514272604,2.3956674,4477.5,4477.4,0.00259818]
[1759514272808,1.9690674,4477.5,4477.4,0.00259818]
[1759514273106,0.4459374,4477.5,4477.4,1.79132818]
[1759514273706,1.00402,4478.9,4477.4,1.79132818]
[1759514273707,0.40161,4478.8,4477.8,1.00424]
[1759514273917,1.1214,4479.1,4478.4,1.154]
[1759514274110,0.40162,4478.7,4478.5,0.233]
[1759514274317,1.1214,4478.6,4478.5,0.233]
[1759514274516,2.86727594,4479.1,4478.5,0.233]
[1759514274716,3.2078,4479.2,4478.5,0.233]
[1759514274915,0.4016,4479.0,4478.5,0.6744]
[1759514275118,0.4016,4478.9,4478.6,1.55562]
[1759514275314,0.40161,4478.8,4478.6,1.154]
[1759514275617,0.4016,4478.9,4478.6,1.55562]
[1759514275816,0.40158,4479.2,4478.7,0.40161]
[1759514276117,1.1214,4479.5,4478.9,1.154]
[1759514276313,0.40157,4479.2,4479.0,0.233]
[1759514276514,1.1214,4479.6,4479.0,0.233]
[1759514276714,2.90002754,4479.6,4479.0,0.233]
[1759514277020,1.1214,4479.1,4479.0,0.233]
[1759514277609,3.2078,4479.2,4479.1,1.55558]
[1759514277914,0.40157,4479.2,4479.0,0.233]
[1759514278112,1.1214,4479.1,4479.0,0.233]
[1759514278513,6.1214,4479.1,4479.0,0.233]
[1759514278913,3.6344,4479.5,4479.0,0.233]
[1759514279113,0.40157,4479.2,4479.1,1.154]
[1759514279316,3.2078,4479.5,4479.0,0.233]
[1759514279521,1.52298,4479.1,4479.0,0.233]
[1759514280212,1.52299,4479.1,4478.6,1.154]
[1759514280410,1.52299,4479.1,4477.8,3.2078]
[1759514280411,1.548,4478.0,4477.8,3.2078]
[1759514280617,1.52313,4477.5,4477.2,4.3618]
[1759514280818,1.1214,4477.5,4477.4,0.23559818]
[1759514281015,0.40163,4478.6,4478.4,1.154]
[1759514281216,1.1214,4478.9,4478.5,1.387]
[1759514281419,1.1214,4478.9,4478.6,1.55562]
[1759514281620,4.63828,4479.5,4479.3,0.40156]
[1759514281621,1.1214,4479.5,4479.3,0.40156]
[1759514281926,1.52295,4479.5,4479.3,0.233]
[1759514282117,0.00250509,4479.7,4479.3,0.233]
[1759514282118,0.00250509,4479.7,4479.4,4.322]
[1759514282324,0.00250509,4479.7,4479.4,3.2078]
[1759514282516,0.00250509,4479.7,4479.6,1.1142]
[1759514282712,3.2078,4480.7,4479.9,1.1142]
[1759514282916,3.2078,4480.7,4480.1,0.40149]
[1759514283117,3.2078,4480.7,4480.0,5.0044]
[1759514283312,1.1536,4481.2,4480.5,3.2078]
[1759514283512,1.0033,4482.1,4480.6,1.3472]
[1759514283513,0.40143,4480.9,4480.6,1.3472]
[1759514283726,0.00182224,4480.9,4480.8,1.51563]
[1759514283917,0.00182224,4480.9,4480.8,1.1142]
[1759514286520,1.1536,4481.8,4480.7,1.1142]
[1759514286716,0.40142,4480.9,4480.8,0.233]
[1759514287429,0.40308011,4480.9,4480.8,0.233]
[1759514287634,6.55668011,4480.9,4480.8,0.233]
[1759514288021,1.55504,4480.7,4480.6,4.59e-06]
[1759514288824,1.55509,4480.1,4480.0,34.825]
[1759514289031,0.40159,4479.0,4478.9,3.2078]